[Event "Titled Tuesday Blitz May 31 Late 2022"]
[White "Weisz, Bryan"]
[Black "Vusatiuk, Vladimir"]
[WhiteFideId "30934133"]
[BlackFideId "14118610"]
[WhiteElo "2125"]
[BlackElo "2157"]
[Result "0-1"]
[Round "02"]
[TimeControl "180+1"]
[Date "2022.06.01"]
[WhiteClock "0:00:18"]
[BlackClock "0:00:18"]

1. e4 {[%clk 0:02:58]}  e6 {[%clk 0:02:57]} 2. d4 {[%clk 0:02:58]}  d5 {[%clk 0:02:57]} 3. Nd2 {[%clk 0:02:59]}  c5 {[%clk 0:02:55]} 4. e5 {[%clk 0:02:57]}  cxd4 {[%clk 0:02:51]} 5. Ngf3 {[%clk 0:02:57]}  Nc6 {[%clk 0:02:50]} 6. Bd3 {[%clk 0:02:54]}  Qc7 {[%clk 0:02:39]} 7. O-O {[%clk 0:02:54]}  Nxe5 {[%clk 0:02:31]} 8. Nxe5 {[%clk 0:02:53]}  Qxe5 {[%clk 0:02:32]} 9. Bb5+ {[%clk 0:02:50]}  Bd7 {[%clk 0:02:32]} 10. Bxd7+ {[%clk 0:02:50]}  Kxd7 {[%clk 0:02:33]} 11. Nf3 {[%clk 0:02:48]}  Qc7 {[%clk 0:02:23]} 12. Qxd4 {[%clk 0:02:43]}  Nf6 {[%clk 0:02:21]} 13. Ne5+ {[%clk 0:02:21]}  Ke8 {[%clk 0:02:18]} 14. Bf4 {[%clk 0:02:15]}  Bd6 {[%clk 0:02:06]} 15. c4 {[%clk 0:02:02]}  Nd7 {[%clk 0:01:45]} 16. Nxd7 {[%clk 0:01:55]}  Bxf4 {[%clk 0:01:40]} 17. Qxg7 {[%clk 0:01:54]}  Kxd7 {[%clk 0:01:40]} 18. cxd5 {[%clk 0:01:50]}  Raf8 {[%clk 0:00:35]} 19. dxe6+ {[%clk 0:01:48]}  Kc8 {[%clk 0:00:30]} 20. e7 {[%clk 0:01:25]}  Re8 {[%clk 0:00:18]} 21. g3 {[%clk 0:01:05]}  Kb8 {[%clk 0:00:15]} 22. Qxf7 {[%clk 0:01:01]}  Bd6 {[%clk 0:00:12]} 23. Rac1 {[%clk 0:00:53]}  Qxe7 {[%clk 0:00:12]} 24. Qd5 {[%clk 0:00:48]}  h5 {[%clk 0:00:12]} 25. Rfd1 {[%clk 0:00:48]}  Bc7 {[%clk 0:00:10]} 26. h4 {[%clk 0:00:37]}  Rhg8 {[%clk 0:00:09]} 27. Kh1 {[%clk 0:00:37]}  Ref8 {[%clk 0:00:08]} 28. Re1 {[%clk 0:00:26]}  Qd6 {[%clk 0:00:07]} 29. Qxh5 {[%clk 0:00:22]}  Rxf2 {[%clk 0:00:05]} 30. Re8+ {[%clk 0:00:22]}  Rxe8 {[%clk 0:00:05]} 31. Qxe8+ {[%clk 0:00:23]}  Qd8 {[%clk 0:00:06]} 32. Qxd8+ {[%clk 0:00:22]}  Bxd8 {[%clk 0:00:06]} 33. h5 {[%clk 0:00:18]}  Rxb2 {[%clk 0:00:05]} 34. Rf1 {[%clk 0:00:18]}  Kc7 {[%clk 0:00:03]} 35. h6 {[%clk 0:00:17]}  Rb6 {[%clk 0:00:03]} 36. Rf7+ {[%clk 0:00:16]}  Kc8 {[%clk 0:00:03]} 37. Rh7 {[%clk 0:00:10]}  Rg6 {[%clk 0:00:03]} 38. Kh2 {[%clk 0:00:10]}  Bf6 {[%clk 0:00:04]} 39. Kh3 {[%clk 0:00:08]}  a5 {[%clk 0:00:04]} 40. g4 {[%clk 0:00:08]}  a4 {[%clk 0:00:04]} 41. Rf7 {[%clk 0:00:09]}  Rxh6+ {[%clk 0:00:04]} 42. Kg3 {[%clk 0:00:09]}  Rg6 {[%clk 0:00:05]} 43. Kf4 {[%clk 0:00:10]}  Bd8 {[%clk 0:00:03]} 44. Kf5 {[%clk 0:00:09]}  Rg5+ {[%clk 0:00:04]} 45. Kf4 {[%clk 0:00:09]}  b5 {[%clk 0:00:04]} 46. a3 {[%clk 0:00:06]}  Rc5 {[%clk 0:00:04]} 47. Ke4 {[%clk 0:00:04]}  Rc4+ {[%clk 0:00:05]} 48. Kf5 {[%clk 0:00:04]}  Rc3 {[%clk 0:00:04]} 49. g5 {[%clk 0:00:04]}  Rf3+ {[%clk 0:00:03]} 50. Ke6 {[%clk 0:00:04]}  Rxf7 {[%clk 0:00:04]} 51. Kxf7 {[%clk 0:00:05]}  Bxg5 {[%clk 0:00:05]} 52. Ke6 {[%clk 0:00:05]}  Bc1 {[%clk 0:00:06]} 53. Kd5 {[%clk 0:00:06]}  Bxa3 {[%clk 0:00:06]} 54. Kc6 {[%clk 0:00:06]}  b4 {[%clk 0:00:05]} 55. Kb5 {[%clk 0:00:07]}  b3 {[%clk 0:00:06]} 56. Kxa4 {[%clk 0:00:08]}  b2 {[%clk 0:00:07]} 57. Kxa3 {[%clk 0:00:09]}  b1=Q {[%clk 0:00:07]} 58. Ka4 {[%clk 0:00:09]}  Kc7 {[%clk 0:00:08]} 59. Ka5 {[%clk 0:00:10]}  Kc6 {[%clk 0:00:09]} 60. Ka4 {[%clk 0:00:10]}  Kc5 {[%clk 0:00:09]} 61. Ka3 {[%clk 0:00:11]}  Kc4 {[%clk 0:00:09]} 62. Ka4 {[%clk 0:00:12]}  Qb6 {[%clk 0:00:09]} 63. Ka3 {[%clk 0:00:12]}  Qb5 {[%clk 0:00:10]} 64. Ka2 {[%clk 0:00:13]}  Qb4 {[%clk 0:00:11]} 65. Ka1 {[%clk 0:00:13]}  Kc3 {[%clk 0:00:12]} 66. Ka2 {[%clk 0:00:14]}  Kc2 {[%clk 0:00:13]} 67. Ka1 {[%clk 0:00:14]}  Qc3+ {[%clk 0:00:13]} 68. Ka2 {[%clk 0:00:15]}  Qc5 {[%clk 0:00:13]} 69. Ka1 {[%clk 0:00:15]}  Qd6 {[%clk 0:00:14]} 70. Ka2 {[%clk 0:00:16]}  Qe7 {[%clk 0:00:15]} 71. Ka1 {[%clk 0:00:17]}  Qf8 {[%clk 0:00:16]} 72. Ka2 {[%clk 0:00:17]}  Qf3 {[%clk 0:00:17]} 73. Ka1 {[%clk 0:00:18]}  Qb7 {[%clk 0:00:17]} 74. Ka2 {[%clk 0:00:18]}  Qb2# {[%clk 0:00:18]} 0-1


[Site "https://www.chess.com"]

[Event "Titled Tuesday Blitz May 31 Late 2022"]
[White "Yang, Kaiqi"]
[Black "Bluebaum, Matthias"]
[WhiteFideId "8604398"]
[BlackFideId "24651516"]
[WhiteElo "2373"]
[BlackElo "2556"]
[Result "0-1"]
[Round "02"]
[TimeControl "180+1"]
[Date "2022.05.31"]
[WhiteClock "0:00:03"]
[BlackClock "0:00:08"]

1. d4 {[%clk 0:03:00]}  Nf6 {[%clk 0:02:58]} 2. c4 {[%clk 0:03:01]}  e6 {[%clk 0:02:59]} 3. Bf4 {[%clk 0:03:00]}  d5 {[%clk 0:02:57]} 4. cxd5 {[%clk 0:02:59]}  exd5 {[%clk 0:02:54]} 5. Nc3 {[%clk 0:02:59]}  Bd6 {[%clk 0:02:50]} 6. Bxd6 {[%clk 0:02:59]}  Qxd6 {[%clk 0:02:51]} 7. e3 {[%clk 0:02:59]}  Bf5 {[%clk 0:02:49]} 8. Bd3 {[%clk 0:02:40]}  Bxd3 {[%clk 0:02:49]} 9. Qxd3 {[%clk 0:02:41]}  O-O {[%clk 0:02:49]} 10. Nf3 {[%clk 0:02:41]}  c6 {[%clk 0:02:49]} 11. O-O {[%clk 0:02:41]}  Nbd7 {[%clk 0:02:50]} 12. Rab1 {[%clk 0:02:41]}  Rfe8 {[%clk 0:02:48]} 13. Qc2 {[%clk 0:02:38]}  a5 {[%clk 0:02:46]} 14. a3 {[%clk 0:02:38]}  g6 {[%clk 0:02:34]} 15. Rfc1 {[%clk 0:02:35]}  Rec8 {[%clk 0:02:26]} 16. h3 {[%clk 0:02:34]}  Kg7 {[%clk 0:02:27]} 17. Nd2 {[%clk 0:02:24]}  h5 {[%clk 0:02:24]} 18. Na4 {[%clk 0:02:20]}  Re8 {[%clk 0:02:02]} 19. b4 {[%clk 0:02:15]}  axb4 {[%clk 0:01:52]} 20. axb4 {[%clk 0:02:16]}  b5 {[%clk 0:01:47]} 21. Nc5 {[%clk 0:02:08]}  Rec8 {[%clk 0:01:33]} 22. Ra1 {[%clk 0:01:53]}  Nb6 {[%clk 0:01:29]} 23. Nb7 {[%clk 0:01:36]}  Qxb4 {[%clk 0:01:26]} 24. Rxa8 {[%clk 0:01:34]}  Rxa8 {[%clk 0:01:27]} 25. Rb1 {[%clk 0:01:28]}  Qe7 {[%clk 0:01:04]} 26. Qxc6 {[%clk 0:01:27]}  Nc4 {[%clk 0:01:05]} 27. Nf3 {[%clk 0:01:11]}  Ra2 {[%clk 0:00:19]} 28. Qxb5 {[%clk 0:00:54]}  Na3 {[%clk 0:00:19]} 29. Qb3 {[%clk 0:00:51]}  Nxb1 {[%clk 0:00:19]} 30. Qxa2 {[%clk 0:00:51]}  Qxb7 {[%clk 0:00:20]} 31. Ne5 {[%clk 0:00:40]}  Nc3 {[%clk 0:00:19]} 32. Qa3 {[%clk 0:00:39]}  Qb1+ {[%clk 0:00:18]} 33. Kh2 {[%clk 0:00:39]}  Ne2 {[%clk 0:00:19]} 34. Nf3 {[%clk 0:00:37]}  Ng4+ {[%clk 0:00:14]} 35. hxg4 {[%clk 0:00:36]}  hxg4 {[%clk 0:00:15]} 36. Qe7 {[%clk 0:00:31]}  gxf3 {[%clk 0:00:15]} 37. Qe5+ {[%clk 0:00:31]}  Kh7 {[%clk 0:00:14]} 38. gxf3 {[%clk 0:00:20]}  Qg1+ {[%clk 0:00:14]} 39. Kh3 {[%clk 0:00:20]}  Qh1+ {[%clk 0:00:12]} 40. Kg4 {[%clk 0:00:11]}  Qg2+ {[%clk 0:00:12]} 41. Kh4 {[%clk 0:00:11]}  Qxf2+ {[%clk 0:00:11]} 42. Kg5 {[%clk 0:00:11]}  Qxf3 {[%clk 0:00:08]} 43. Qh2+ {[%clk 0:00:07]}  Kg8 {[%clk 0:00:08]} 44. Qb8+ {[%clk 0:00:04]}  Kg7 {[%clk 0:00:09]} 45. Qe8 {[%clk 0:00:03]}  Qh5# {[%clk 0:00:08]} 0-1


[Site "https://www.chess.com"]

[Event "Titled Tuesday Blitz May 31 Late 2022"]
[White "Ansh M Shah"]
[Black "Premnath, R."]
[WhiteFideId "25033379"]
[BlackFideId "5021928"]
[WhiteElo "1819"]
[BlackElo "2581"]
[Result "0-1"]
[Round "03"]
[TimeControl "180+1"]
[Date "2022.06.01"]
[WhiteClock "0:00:06"]
[BlackClock "0:00:02"]

1. d4 {[%clk 0:03:00]}  Nf6 {[%clk 0:02:59]} 2. c4 {[%clk 0:03:01]}  e6 {[%clk 0:02:59]} 3. Nf3 {[%clk 0:03:01]}  c5 {[%clk 0:02:59]} 4. g3 {[%clk 0:03:02]}  cxd4 {[%clk 0:02:54]} 5. Nxd4 {[%clk 0:03:03]}  Nc6 {[%clk 0:02:54]} 6. Bg2 {[%clk 0:03:04]}  Bc5 {[%clk 0:02:54]} 7. Nc2 {[%clk 0:03:03]}  O-O {[%clk 0:02:54]} 8. O-O {[%clk 0:03:04]}  d5 {[%clk 0:02:47]} 9. cxd5 {[%clk 0:03:01]}  Nxd5 {[%clk 0:02:48]} 10. b3 {[%clk 0:03:01]}  Ndb4 {[%clk 0:02:40]} 11. Nxb4 {[%clk 0:03:00]}  Nxb4 {[%clk 0:02:40]} 12. Nc3 {[%clk 0:02:58]}  e5 {[%clk 0:02:40]} 13. Bb2 {[%clk 0:02:57]}  Rb8 {[%clk 0:02:38]} 14. a3 {[%clk 0:02:55]}  Nc6 {[%clk 0:02:37]} 15. b4 {[%clk 0:02:56]}  Bb6 {[%clk 0:02:26]} 16. e3 {[%clk 0:02:55]}  Be6 {[%clk 0:02:14]} 17. Nd5 {[%clk 0:02:55]}  f6 {[%clk 0:01:57]} 18. Nxb6 {[%clk 0:02:54]}  Qxb6 {[%clk 0:01:57]} 19. Bd5 {[%clk 0:02:53]}  Ne7 {[%clk 0:01:54]} 20. Bxe6+ {[%clk 0:02:52]}  Qxe6 {[%clk 0:01:55]} 21. Qa4 {[%clk 0:02:52]}  a6 {[%clk 0:01:55]} 22. Rfd1 {[%clk 0:02:46]}  Rfd8 {[%clk 0:01:55]} 23. Qa5 {[%clk 0:02:44]}  Rdc8 {[%clk 0:01:47]} 24. Rac1 {[%clk 0:02:40]}  Rxc1 {[%clk 0:01:36]} 25. Rxc1 {[%clk 0:02:41]}  Rc8 {[%clk 0:01:36]} 26. Rxc8+ {[%clk 0:02:37]}  Qxc8 {[%clk 0:01:36]} 27. Qb6 {[%clk 0:02:34]}  Qc6 {[%clk 0:01:31]} 28. Qd8+ {[%clk 0:02:31]}  Kf7 {[%clk 0:01:32]} 29. Qd2 {[%clk 0:02:30]}  Qc4 {[%clk 0:01:27]} 30. f4 {[%clk 0:02:23]}  e4 {[%clk 0:01:24]} 31. Bd4 {[%clk 0:02:19]}  Nd5 {[%clk 0:01:21]} 32. Kf2 {[%clk 0:02:16]}  b5 {[%clk 0:01:15]} 33. Bc5 {[%clk 0:02:15]}  Ke6 {[%clk 0:01:12]} 34. g4 {[%clk 0:02:08]}  g6 {[%clk 0:01:09]} 35. h3 {[%clk 0:02:08]}  h5 {[%clk 0:01:08]} 36. Qd4 {[%clk 0:01:52]}  Qc2+ {[%clk 0:01:03]} 37. Kg1 {[%clk 0:01:43]}  hxg4 {[%clk 0:00:52]} 38. hxg4 {[%clk 0:01:44]}  Qd3 {[%clk 0:00:52]} 39. Qxd3 {[%clk 0:01:37]}  exd3 {[%clk 0:00:53]} 40. Kf2 {[%clk 0:01:36]}  f5 {[%clk 0:00:52]} 41. g5 {[%clk 0:01:23]}  Nc3 {[%clk 0:00:51]} 42. Ke1 {[%clk 0:01:22]}  Ne4 {[%clk 0:00:50]} 43. Kd1 {[%clk 0:01:07]}  Kd5 {[%clk 0:00:50]} 44. Kc1 {[%clk 0:01:06]}  Kc4 {[%clk 0:00:50]} 45. Kb2 {[%clk 0:01:07]}  a5 {[%clk 0:00:40]} 46. Be7 {[%clk 0:01:05]}  a4 {[%clk 0:00:37]} 47. Bf8 {[%clk 0:01:04]}  Nc3 {[%clk 0:00:36]} 48. Kc1 {[%clk 0:01:01]}  Nd5 {[%clk 0:00:18]} 49. Kd2 {[%clk 0:00:59]}  Nc3 {[%clk 0:00:17]} 50. Kc1 {[%clk 0:00:58]}  Ne4 {[%clk 0:00:18]} 51. Kb2 {[%clk 0:00:57]}  d2 {[%clk 0:00:18]} 52. Kc2 {[%clk 0:00:58]}  d1=Q+ {[%clk 0:00:15]} 53. Kxd1 {[%clk 0:00:58]}  Kb3 {[%clk 0:00:15]} 54. Kc1 {[%clk 0:00:38]}  Nc3 {[%clk 0:00:12]} 55. Bg7 {[%clk 0:00:28]}  Nd5 {[%clk 0:00:10]} 56. Bd4 {[%clk 0:00:06]}  Kxa3 {[%clk 0:00:10]} 57. e4 {[%clk 0:00:06]}  fxe4 {[%clk 0:00:09]} 58. f5 {[%clk 0:00:07]}  gxf5 {[%clk 0:00:08]} 59. g6 {[%clk 0:00:07]}  Ne7 {[%clk 0:00:06]} 60. g7 {[%clk 0:00:07]}  Ng8 {[%clk 0:00:04]} 61. Bc5 {[%clk 0:00:07]}  Kb3 {[%clk 0:00:04]} 62. Kb1 {[%clk 0:00:07]}  a3 {[%clk 0:00:02]} 63. Kc1 {[%clk 0:00:07]}  f4 {[%clk 0:00:01]} 64. Kd2 {[%clk 0:00:06]}  e3+ {[%clk 0:00:02]} 65. Ke2 {[%clk 0:00:06]}  a2 {[%clk 0:00:03]} 66. Bd4 {[%clk 0:00:06]}  Kxb4 {[%clk 0:00:03]} 67. Kf3 {[%clk 0:00:07]}  Kc4 {[%clk 0:00:02]} 68. Ba1 {[%clk 0:00:07]}  Kd3 {[%clk 0:00:02]} 69. Kg4 {[%clk 0:00:06]}  e2 {[%clk 0:00:03]} 70. Kf5 {[%clk 0:00:06]}  e1=Q {[%clk 0:00:01]} 71. Kg6 {[%clk 0:00:07]}  Qe7 {[%clk 0:00:01]} 72. Kh7 {[%clk 0:00:07]}  Qf7 {[%clk 0:00:02]} 73. Bf6 {[%clk 0:00:06]}  f3 {[%clk 0:00:02]} 74. Bh4 {[%clk 0:00:05]}  f2 {[%clk 0:00:01]} 75. Bxf2 {[%clk 0:00:06]}  a1=Q {[%clk 0:00:01]} 76. Bd4 {[%clk 0:00:06]}  Qh1# {[%clk 0:00:02]} 0-1


[Site "https://www.chess.com"]

[Event "Titled Tuesday Blitz May 31 Late 2022"]
[White "Bryakin, Mikhail"]
[Black "Hardaway, Brewington"]
[WhiteFideId "4165314"]
[BlackFideId "30941849"]
[WhiteElo "2417"]
[BlackElo "1768"]
[Result "0-1"]
[Round "03"]
[TimeControl "180+1"]
[Date "2022.05.31"]
[WhiteClock "0:00:33"]
[BlackClock "0:01:03"]

1. e4 {[%clk 0:02:55]}  e5 {[%clk 0:02:59]} 2. d4 {[%clk 0:02:47]}  exd4 {[%clk 0:02:59]} 3. Qxd4 {[%clk 0:02:47]}  Nc6 {[%clk 0:02:59]} 4. Qd3 {[%clk 0:02:38]}  Nf6 {[%clk 0:02:54]} 5. Nc3 {[%clk 0:02:37]}  Bc5 {[%clk 0:02:52]} 6. a3 {[%clk 0:02:31]}  O-O {[%clk 0:02:47]} 7. Be3 {[%clk 0:02:15]}  Ne5 {[%clk 0:02:44]} 8. Qd2 {[%clk 0:02:14]}  Bxe3 {[%clk 0:02:41]} 9. Qxe3 {[%clk 0:02:15]}  d5 {[%clk 0:02:37]} 10. O-O-O {[%clk 0:02:06]}  Neg4 {[%clk 0:02:22]} 11. Qe1 {[%clk 0:01:52]}  c6 {[%clk 0:01:56]} 12. h3 {[%clk 0:01:12]}  Nh6 {[%clk 0:01:49]} 13. f4 {[%clk 0:01:06]}  Qb6 {[%clk 0:01:29]} 14. e5 {[%clk 0:00:54]}  Ne4 {[%clk 0:01:28]} 15. Nxe4 {[%clk 0:00:51]}  dxe4 {[%clk 0:01:29]} 16. g4 {[%clk 0:00:52]}  f5 {[%clk 0:01:26]} 17. Bc4+ {[%clk 0:00:48]}  Kh8 {[%clk 0:01:25]} 18. g5 {[%clk 0:00:44]}  Ng8 {[%clk 0:01:24]} 19. Ne2 {[%clk 0:00:42]}  Qc5 {[%clk 0:01:20]} 20. Ba2 {[%clk 0:00:37]}  Ne7 {[%clk 0:01:13]} 21. Kb1 {[%clk 0:00:37]}  b6 {[%clk 0:01:06]} 22. h4 {[%clk 0:00:33]}  Ba6 {[%clk 0:01:03]} 0-1


[Site "https://www.chess.com"]

[Event "Titled Tuesday Blitz May 31 Late 2022"]
[White "Chigaev, Maksim"]
[Black "Song, Michael"]
[WhiteFideId "4108116"]
[BlackFideId "2613190"]
[WhiteElo "2457"]
[BlackElo "2274"]
[Result "1/2-1/2"]
[Round "03"]
[TimeControl "180+1"]
[Date "2022.06.01"]
[WhiteClock "0:00:14"]
[BlackClock "0:00:11"]

1. e4 {[%clk 0:03:00]}  e5 {[%clk 0:02:57]} 2. Nf3 {[%clk 0:02:59]}  Nc6 {[%clk 0:02:57]} 3. g3 {[%clk 0:03:00]}  Nf6 {[%clk 0:02:56]} 4. d3 {[%clk 0:03:00]}  d5 {[%clk 0:02:54]} 5. exd5 {[%clk 0:03:01]}  Nxd5 {[%clk 0:02:54]} 6. Bg2 {[%clk 0:03:01]}  Bc5 {[%clk 0:02:52]} 7. O-O {[%clk 0:03:00]}  O-O {[%clk 0:02:52]} 8. Re1 {[%clk 0:03:00]}  f6 {[%clk 0:02:49]} 9. c3 {[%clk 0:02:57]}  Bb6 {[%clk 0:02:46]} 10. Na3 {[%clk 0:02:56]}  Bf5 {[%clk 0:02:43]} 11. Nc4 {[%clk 0:02:49]}  Qd7 {[%clk 0:02:43]} 12. Nxb6 {[%clk 0:02:43]}  Nxb6 {[%clk 0:02:42]} 13. a4 {[%clk 0:02:37]}  Qxd3 {[%clk 0:02:33]} 14. a5 {[%clk 0:02:31]}  Qxd1 {[%clk 0:02:30]} 15. Rxd1 {[%clk 0:02:32]}  Nc4 {[%clk 0:02:29]} 16. a6 {[%clk 0:02:32]}  Rad8 {[%clk 0:02:20]} 17. Re1 {[%clk 0:02:10]}  b5 {[%clk 0:01:59]} 18. Nh4 {[%clk 0:02:06]}  Bd7 {[%clk 0:01:58]} 19. b3 {[%clk 0:01:56]}  Nb6 {[%clk 0:01:54]} 20. Ba3 {[%clk 0:01:55]}  b4 {[%clk 0:01:48]} 21. Bxb4 {[%clk 0:01:49]}  Nxb4 {[%clk 0:01:48]} 22. cxb4 {[%clk 0:01:50]}  Be6 {[%clk 0:01:43]} 23. Rec1 {[%clk 0:01:48]}  Rf7 {[%clk 0:01:40]} 24. Rc3 {[%clk 0:01:41]}  Rfd7 {[%clk 0:01:31]} 25. Bf3 {[%clk 0:01:36]}  g5 {[%clk 0:01:22]} 26. Ng2 {[%clk 0:01:35]}  f5 {[%clk 0:01:09]} 27. Ne3 {[%clk 0:01:24]}  e4 {[%clk 0:01:08]} 28. Bh5 {[%clk 0:01:21]}  f4 {[%clk 0:00:52]} 29. Ng4 {[%clk 0:01:08]}  Kg7 {[%clk 0:00:52]} 30. h3 {[%clk 0:00:58]}  Rd1+ {[%clk 0:00:43]} 31. Rxd1 {[%clk 0:00:58]}  Rxd1+ {[%clk 0:00:44]} 32. Kh2 {[%clk 0:00:58]}  Nd5 {[%clk 0:00:42]} 33. Rc6 {[%clk 0:00:58]}  Bxg4 {[%clk 0:00:38]} 34. Bxg4 {[%clk 0:00:55]}  Rd2 {[%clk 0:00:38]} 35. Kg1 {[%clk 0:00:50]}  e3 {[%clk 0:00:36]} 36. fxe3 {[%clk 0:00:48]}  fxg3 {[%clk 0:00:35]} 37. e4 {[%clk 0:00:26]}  Ne3 {[%clk 0:00:31]} 38. Rxc7+ {[%clk 0:00:26]}  Kf6 {[%clk 0:00:30]} 39. Rc3 {[%clk 0:00:10]}  Rg2+ {[%clk 0:00:21]} 40. Kh1 {[%clk 0:00:11]}  Rh2+ {[%clk 0:00:22]} 41. Kg1 {[%clk 0:00:12]}  Rg2+ {[%clk 0:00:10]} 42. Kh1 {[%clk 0:00:13]}  Rh2+ {[%clk 0:00:10]} 43. Kg1 {[%clk 0:00:14]}  Rg2+ {[%clk 0:00:11]} 1/2-1/2


[Site "https://www.chess.com"]

[Event "Titled Tuesday Blitz May 31 Late 2022"]
[White "Coelho, Ramyres Santana"]
[Black "Prohorov, Olexandr"]
[WhiteFideId "2120690"]
[BlackFideId "14105578"]
[WhiteElo "1888"]
[BlackElo "1993"]
[Result "1-0"]
[Round "03"]
[TimeControl "180+1"]
[Date "2022.06.01"]
[WhiteClock "0:00:06"]
[BlackClock "0:00:08"]

1. e4 {[%clk 0:02:58]}  c5 {[%clk 0:02:59]} 2. Nf3 {[%clk 0:02:58]}  e6 {[%clk 0:02:59]} 3. d4 {[%clk 0:02:58]}  cxd4 {[%clk 0:03:00]} 4. c3 {[%clk 0:02:58]}  Qb6 {[%clk 0:03:01]} 5. cxd4 {[%clk 0:02:58]}  Nf6 {[%clk 0:02:58]} 6. Nc3 {[%clk 0:02:49]}  Bb4 {[%clk 0:02:56]} 7. Bd3 {[%clk 0:02:48]}  d5 {[%clk 0:02:55]} 8. e5 {[%clk 0:02:46]}  Ne4 {[%clk 0:02:54]} 9. Bd2 {[%clk 0:02:36]}  Nxd2 {[%clk 0:02:51]} 10. Qxd2 {[%clk 0:02:36]}  Bd7 {[%clk 0:02:47]} 11. a3 {[%clk 0:02:36]}  Bxc3 {[%clk 0:02:41]} 12. bxc3 {[%clk 0:02:37]}  Nc6 {[%clk 0:02:34]} 13. O-O {[%clk 0:02:36]}  Rc8 {[%clk 0:02:32]} 14. Rab1 {[%clk 0:02:34]}  Qc7 {[%clk 0:02:32]} 15. Ng5 {[%clk 0:02:28]}  h6 {[%clk 0:02:12]} 16. Nh3 {[%clk 0:02:03]}  Na5 {[%clk 0:02:09]} 17. Rfc1 {[%clk 0:01:56]}  Ba4 {[%clk 0:02:05]} 18. Qf4 {[%clk 0:01:47]}  Qe7 {[%clk 0:01:51]} 19. g4 {[%clk 0:01:41]}  Nb3 {[%clk 0:01:34]} 20. Bb5+ {[%clk 0:01:32]}  Bxb5 {[%clk 0:01:32]} 21. Rxb3 {[%clk 0:01:31]}  Ba4 {[%clk 0:01:32]} 22. Rb4 {[%clk 0:01:30]}  b5 {[%clk 0:01:28]} 23. Qe3 {[%clk 0:01:10]}  a5 {[%clk 0:01:27]} 24. Rxa4 {[%clk 0:01:09]}  bxa4 {[%clk 0:01:27]} 25. f4 {[%clk 0:01:07]}  Qxa3 {[%clk 0:01:23]} 26. f5 {[%clk 0:01:04]}  Qb2 {[%clk 0:01:14]} 27. fxe6 {[%clk 0:00:57]}  fxe6 {[%clk 0:01:13]} 28. Nf4 {[%clk 0:00:57]}  Kd7 {[%clk 0:01:12]} 29. Nd3 {[%clk 0:00:34]}  Qb5 {[%clk 0:00:37]} 30. Nc5+ {[%clk 0:00:32]}  Rxc5 {[%clk 0:00:37]} 31. dxc5 {[%clk 0:00:31]}  Rc8 {[%clk 0:00:37]} 32. c6+ {[%clk 0:00:18]}  Rxc6 {[%clk 0:00:34]} 33. Qa7+ {[%clk 0:00:17]}  Rc7 {[%clk 0:00:34]} 34. Qa8 {[%clk 0:00:15]}  Qc5+ {[%clk 0:00:31]} 35. Kg2 {[%clk 0:00:14]}  Qe3 {[%clk 0:00:31]} 36. Rf1 {[%clk 0:00:10]}  Qe4+ {[%clk 0:00:28]} 37. Kg1 {[%clk 0:00:08]}  Qxg4+ {[%clk 0:00:27]} 38. Kh1 {[%clk 0:00:08]}  Qg6 {[%clk 0:00:21]} 39. Qxa5 {[%clk 0:00:06]}  Qe8 {[%clk 0:00:08]} 40. Qxa4+ {[%clk 0:00:04]}  Kd8 {[%clk 0:00:09]} 41. Qa8+ {[%clk 0:00:04]}  Rc8 {[%clk 0:00:09]} 42. Qa5+ {[%clk 0:00:04]}  Kd7 {[%clk 0:00:08]} 43. Rb1 {[%clk 0:00:04]}  Qd8 {[%clk 0:00:07]} 44. Rb7+ {[%clk 0:00:04]}  Ke8 {[%clk 0:00:08]} 45. Qb5+ {[%clk 0:00:04]}  Kf8 {[%clk 0:00:08]} 46. Qb4+ {[%clk 0:00:04]}  Kg8 {[%clk 0:00:08]} 47. Qg4 {[%clk 0:00:04]}  Qf8 {[%clk 0:00:08]} 48. Qxe6+ {[%clk 0:00:03]}  Kh8 {[%clk 0:00:08]} 49. Qg6 {[%clk 0:00:03]}  Re8 {[%clk 0:00:08]} 50. Rf7 {[%clk 0:00:03]}  Qg8 {[%clk 0:00:07]} 51. e6 {[%clk 0:00:03]}  d4 {[%clk 0:00:07]} 52. e7 {[%clk 0:00:03]}  Rc8 {[%clk 0:00:06]} 53. Rf8 {[%clk 0:00:03]}  d3 {[%clk 0:00:07]} 54. Rxg8+ {[%clk 0:00:03]}  Rxg8 {[%clk 0:00:07]} 55. e8=Q {[%clk 0:00:04]}  Rxe8 {[%clk 0:00:08]} 56. Qxe8+ {[%clk 0:00:05]}  Kh7 {[%clk 0:00:09]} 57. Qe4+ {[%clk 0:00:05]}  g6 {[%clk 0:00:08]} 58. Qxd3 {[%clk 0:00:06]}  Kg7 {[%clk 0:00:08]} 59. Qd6 {[%clk 0:00:06]} 1-0


[Site "https://www.chess.com"]

[Event "Titled Tuesday Blitz May 31 Late 2022"]
[White "Darini, Pouria"]
[Black "Baches Garcia, Guillermo"]
[WhiteFideId "12502200"]
[BlackFideId "2209764"]
[WhiteElo "2483"]
[BlackElo "2499"]
[Result "1-0"]
[Round "03"]
[TimeControl "180+1"]
[Date "2022.06.01"]
[WhiteClock "0:00:08"]
[BlackClock "0:00:04"]

1. b3 {[%clk 0:03:00]}  Nf6 {[%clk 0:02:56]} 2. Bb2 {[%clk 0:03:01]}  g6 {[%clk 0:02:57]} 3. Nf3 {[%clk 0:03:01]}  Bg7 {[%clk 0:02:56]} 4. g3 {[%clk 0:03:01]}  O-O {[%clk 0:02:56]} 5. d4 {[%clk 0:03:01]}  d5 {[%clk 0:02:45]} 6. Bg2 {[%clk 0:03:00]}  Ne4 {[%clk 0:02:43]} 7. Nfd2 {[%clk 0:02:49]}  c5 {[%clk 0:02:30]} 8. c3 {[%clk 0:02:33]}  Bf5 {[%clk 0:02:05]} 9. O-O {[%clk 0:02:12]}  Nc6 {[%clk 0:01:47]} 10. Nxe4 {[%clk 0:02:12]}  Bxe4 {[%clk 0:01:46]} 11. Bxe4 {[%clk 0:02:12]}  dxe4 {[%clk 0:01:44]} 12. d5 {[%clk 0:02:13]}  Ne5 {[%clk 0:01:38]} 13. Na3 {[%clk 0:01:43]}  f5 {[%clk 0:01:26]} 14. f4 {[%clk 0:01:26]}  Ng4 {[%clk 0:01:11]} 15. Nc2 {[%clk 0:01:25]}  c4 {[%clk 0:00:43]} 16. h3 {[%clk 0:01:22]}  Qb6+ {[%clk 0:00:31]} 17. Kg2 {[%clk 0:01:15]}  Ne3+ {[%clk 0:00:30]} 18. Nxe3 {[%clk 0:01:15]}  Qxe3 {[%clk 0:00:30]} 19. Qc2 {[%clk 0:00:46]}  b5 {[%clk 0:00:27]} 20. Rad1 {[%clk 0:00:45]}  Rfd8 {[%clk 0:00:25]} 21. Qd2 {[%clk 0:00:20]}  Qxd2 {[%clk 0:00:20]} 22. Rxd2 {[%clk 0:00:21]}  b4 {[%clk 0:00:17]} 23. Rc1 {[%clk 0:00:16]}  bxc3 {[%clk 0:00:13]} 24. Bxc3 {[%clk 0:00:16]}  cxb3 {[%clk 0:00:12]} 25. Bxg7 {[%clk 0:00:16]}  Kxg7 {[%clk 0:00:12]} 26. axb3 {[%clk 0:00:16]}  Rac8 {[%clk 0:00:12]} 27. Ra1 {[%clk 0:00:14]}  Rd7 {[%clk 0:00:11]} 28. Ra6 {[%clk 0:00:07]}  Rc3 {[%clk 0:00:11]} 29. b4 {[%clk 0:00:07]}  Rb3 {[%clk 0:00:10]} 30. Rd4 {[%clk 0:00:07]}  Rb2 {[%clk 0:00:10]} 31. Kf2 {[%clk 0:00:07]}  h5 {[%clk 0:00:10]} 32. Rc6 {[%clk 0:00:07]}  Rb7 {[%clk 0:00:09]} 33. Rcc4 {[%clk 0:00:06]}  Ra2 {[%clk 0:00:08]} 34. d6 {[%clk 0:00:06]}  exd6 {[%clk 0:00:07]} 35. Rxd6 {[%clk 0:00:07]}  Rb2 {[%clk 0:00:06]} 36. Rcc6 {[%clk 0:00:07]}  R7xb4 {[%clk 0:00:06]} 37. Rxg6+ {[%clk 0:00:08]}  Kf7 {[%clk 0:00:07]} 38. Rgf6+ {[%clk 0:00:08]}  Ke7 {[%clk 0:00:07]} 39. Rh6 {[%clk 0:00:08]}  Kd7 {[%clk 0:00:05]} 40. Rcg6 {[%clk 0:00:08]}  Kc7 {[%clk 0:00:04]} 41. Rg7+ {[%clk 0:00:08]} 1-0


[Site "https://www.chess.com"]